bitfinex-derivatives/quotes_BTCF0:USTF0_20260207
["timestamp","ask_amount","ask_price","bid_price","bid_amount"]
[1770478430998,0.727774,69840.0,69764.0,0.001]
[1770478431206,0.727774,69840.0,69756.0,0.00016703]
[1770478431507,0.58333333,69838.0,69756.0,0.00016703]
[1770478431797,0.58333333,69838.0,69757.0,0.014349]
[1770478431998,0.14444067,69840.0,69756.0,0.00016703]
[1770478431999,0.58333333,69836.0,69756.0,0.00016703]
[1770478432201,0.58333333,69765.0,69680.0,0.10919816]
[1770478432402,0.14444067,69710.0,69682.0,0.014364]
[1770478432596,0.727774,69730.0,69655.0,0.071851]
[1770478432797,0.727774,69730.0,69673.0,0.071833]
[1770478432991,0.14444067,69730.0,69690.0,0.014363]
[1770478433197,0.00016703,69729.0,69690.0,0.014363]
[1770478433402,0.14444067,69730.0,69676.0,0.014366]
[1770478433603,0.00014272,69678.0,69676.0,0.014366]
[1770478433799,0.00014272,69678.0,69662.0,0.00010278]
[1770478434005,0.14444067,69710.0,69662.0,0.01447078]
[1770478434508,0.14444067,69730.0,69668.0,0.071838]
[1770478434692,0.14444067,69730.0,69681.0,0.014365]
[1770478434895,0.727774,69730.0,69676.0,0.002]
[1770478435100,0.14444067,69710.0,69676.0,0.002]
[1770478435500,0.58333333,69730.0,69676.0,0.002]
[1770478435501,0.727774,69730.0,69676.0,0.002]
[1770478435703,0.01436,69703.0,69676.0,0.002]
[1770478435901,0.58333333,69721.0,69676.0,0.002]
[1770478436103,0.01436,69704.0,69676.0,0.002]
[1770478436304,0.14444067,69710.0,69676.0,0.002]
[1770478436500,0.014361,69700.0,69676.0,0.002]
[1770478436906,0.014361,69700.0,69664.0,0.014368]
[1770478437406,0.014362,69696.0,69664.0,0.014368]
[1770478437605,0.65514133,69699.0,69648.0,0.014371]
[1770478438000,0.14444067,69690.0,69619.0,0.135209]
[1770478438202,0.014367,69673.0,69621.0,0.28175048]
[1770478438410,0.14444067,69690.0,69621.0,0.28175048]
[1770478438411,0.014367,69672.0,69639.0,0.014373]
[1770478438710,0.000126,69671.0,69632.0,0.071876]
[1770478438904,0.000126,69671.0,69647.0,0.014372]
[1770478439099,0.000126,69671.0,69642.0,0.014373]
[1770478440102,0.000126,69671.0,69646.0,0.05181225]
[1770478440302,0.000126,69671.0,69646.0,0.05381225]
[1770478440508,0.014365,69677.0,69651.0,0.014371]
[1770478440713,0.014367,69673.0,69646.0,0.03944025]
[1770478440907,0.00026872,69672.0,69646.0,0.03944025]
[1770478441116,0.014368,69666.0,69646.0,0.03944025]
[1770478441414,0.01437,69657.0,69627.0,0.014376]
[1770478441708,0.65518333,69657.0,69623.0,0.00582601]
[1770478441900,0.58360205,69656.0,69613.0,0.00011523]
[1770478442107,0.014372,69644.0,69613.0,0.00011523]
[1770478442307,0.58333333,69656.0,69613.0,0.00011523]
[1770478442308,0.014375,69633.0,69613.0,0.00011523]
[1770478442613,0.14444067,69660.0,69599.0,0.014382]
[1770478442614,0.00026872,69655.0,69628.0,0.014375]
[1770478442806,0.00026872,69655.0,69599.0,0.28807923]
[1770478442807,0.01437,69654.0,69603.0,0.071905]
[1770478443002,0.00026872,69670.0,69625.0,0.014376]
[1770478443202,0.14444067,69660.0,69599.0,0.28807923]
[1770478443408,0.014373,69640.0,69609.0,0.014379]
[1770478443614,0.00038504,69639.0,69592.0,0.28388041]
[1770478443808,0.00011632,69639.0,69617.0,0.014378]
[1770478444005,0.00026872,69638.0,69617.0,0.014378]
[1770478444208,0.00038504,69639.0,69625.0,0.001]
[1770478444403,0.01475904,69638.0,69603.0,0.014381]
[1770478444612,0.014376,69627.0,69593.0,0.014383]
[1770478444817,0.00011632,69626.0,69597.0,0.014382]
[1770478445115,0.00038504,69626.0,69597.0,0.014382]
[1770478445307,0.00026872,69625.0,69605.0,0.01438]
[1770478445509,0.00011632,69624.0,69598.0,0.014382]
[1770478445708,0.00038504,69624.0,69598.0,0.014382]
[1770478445908,0.00026872,69623.0,69598.0,0.014382]
[1770478446109,0.014375,69630.0,69598.0,0.014382]
[1770478446110,0.00038504,69622.0,69598.0,0.014382]
[1770478446310,0.00011632,69622.0,69598.0,0.014382]
[1770478446517,0.58333333,69694.0,69600.0,0.14444067]
[1770478446816,0.58333333,69694.0,69628.0,0.014376]
[1770478447118,0.01436,69704.0,69674.0,0.014366]
[1770478447413,0.01436,69704.0,69657.0,0.01437]
[1770478447616,0.01436,69704.0,69652.0,0.014371]
[1770478447617,0.014361,69697.0,69670.0,0.014367]
[1770478447812,0.014361,69697.0,69652.0,0.014371]
[1770478448007,0.014361,69697.0,69673.0,0.014366]
[1770478448213,0.014361,69697.0,69640.0,0.14444067]
[1770478448214,0.58333333,69723.0,69665.0,0.071841]
[1770478448412,0.01436,69705.0,69664.0,0.014368]
[1770478448811,0.58333333,69710.0,69678.0,0.014365]
[1770478449113,0.58333333,69710.0,69679.0,0.014365]
[1770478449114,0.01436,69705.0,69679.0,0.014365]
[1770478449313,0.014359,69709.0,69683.0,0.014364]
[1770478449516,0.014359,69709.0,69682.0,0.014364]
[1770478449708,0.014359,69709.0,69670.0,0.001]
[1770478449915,0.01436,69706.0,69670.0,0.001]
[1770478450218,0.01436,69706.0,69682.0,0.014364]
[1770478450515,0.58333333,69710.0,69664.0,0.014368]
[1770478450716,0.01436,69703.0,69679.0,0.014365]
[1770478451103,0.58333333,69731.0,69664.0,0.015368]
[1770478451308,0.014358,69715.0,69666.0,0.071841]
[1770478451509,0.014358,69715.0,69660.0,0.14444067]
[1770478451510,0.58333333,69731.0,69682.0,0.071824]
[1770478451711,0.014359,69708.0,69683.0,0.014364]
[1770478451905,0.014359,69708.0,69686.0,0.014363]
[1770478452111,0.58333333,69739.0,69674.0,0.071832]
[1770478452316,0.58333333,69752.0,69729.0,0.014355]
[1770478452716,0.58333333,69752.0,69711.0,0.014358]
[1770478452912,0.58333333,69752.0,69726.0,0.014355]
[1770478452913,0.01435,69751.0,69726.0,0.014355]
[1770478453113,0.58333333,69752.0,69715.0,0.014358]
[1770478453313,0.014351,69748.0,69722.0,0.014356]
[1770478453716,0.58333333,69752.0,69703.0,0.01436]
[1770478454020,0.58333333,69752.0,69723.0,0.014356]
[1770478454415,0.58333333,69752.0,69714.0,0.014358]
[1770478454721,0.58333333,69752.0,69690.0,0.14444067]
[1770478454722,0.58333333,69752.0,69721.0,0.014356]
[1770478455112,0.014351,69746.0,69702.0,0.01436]
[1770478455318,0.01435,69754.0,69727.0,0.014355]
[1770478455628,0.014349,69759.0,69731.0,0.014354]
[1770478455919,0.014349,69759.0,69723.0,0.001]
[1770478456217,0.014349,69759.0,69727.0,0.014355]
[1770478456623,0.014353,69737.0,69685.0,0.071821]
[1770478456819,0.014354,69735.0,69680.0,0.014365]
[1770478457017,0.014354,69735.0,69703.0,0.01436]
[1770478457421,0.014354,69735.0,69666.0,0.28650931]
[1770478457422,0.014356,69725.0,69698.0,0.014361]
[1770478457622,0.014355,69730.0,69698.0,0.014361]
[1770478457816,0.014356,69726.0,69698.0,0.014361]
[1770478458212,0.014356,69722.0,69693.0,0.014362]
[1770478458720,0.014356,69723.0,69693.0,0.014362]
[1770478459220,0.014357,69719.0,69693.0,0.014362]
[1770478459428,0.014357,69719.0,69674.0,0.071832]
[1770478459625,0.58333333,69723.0,69688.0,0.014363]
[1770478459826,0.014359,69710.0,69679.0,0.014365]
[1770478460028,0.01436,69706.0,69678.0,0.014365]
[1770478460224,0.01436,69702.0,69674.0,0.014366]
[1770478460521,0.01436,69704.0,69673.0,0.014366]
[1770478460722,0.014361,69697.0,69663.0,0.0002]
[1770478460920,0.014362,69693.0,69663.0,0.0002]
[1770478461115,0.014363,69689.0,69663.0,0.0002]
[1770478461321,0.014364,69685.0,69634.0,0.10859287]
[1770478461521,0.58333333,69692.0,69662.0,0.014369]
[1770478461717,0.58333333,69689.0,69639.0,0.28756885]
[1770478461926,0.014363,69690.0,69639.0,0.28756885]
[1770478461927,0.58333333,69682.0,69639.0,0.28756885]
[1770478462226,0.58333333,69672.0,69642.0,0.014373]
[1770478462421,0.58333333,69672.0,69652.0,0.014371]
[1770478462624,0.014367,69670.0,69648.0,0.014371]
[1770478463028,0.014368,69665.0,69639.0,0.014373]
[1770478463331,0.01437,69657.0,69626.0,0.0001366]
[1770478463533,0.014371,69651.0,69627.0,0.014376]
[1770478463833,0.00013058,69650.0,69627.0,0.014376]
[1770478464025,0.071832,69675.0,69626.0,0.0001366]
[1770478464026,0.58333333,69684.0,69626.0,0.0001366]
[1770478464225,0.58333333,69680.0,69635.0,0.014374]
[1770478464426,0.58333333,69677.0,69626.0,0.0001366]
[1770478464636,0.014368,69663.0,69626.0,0.0001366]
[1770478464933,0.58333333,69736.0,69691.0,0.014362]
[1770478465127,0.58333333,69736.0,69655.0,0.10859287]
[1770478465128,0.58353333,69722.0,69666.0,0.07184]
[1770478465332,0.58353333,69722.0,69693.0,0.014362]
[1770478465627,0.014357,69720.0,69672.0,0.0862]
[1770478465829,0.014357,69720.0,69674.0,0.014366]
[1770478466031,0.014356,69721.0,69695.0,0.014362]
[1770478466227,0.014356,69721.0,69698.0,0.014361]
[1770478466428,0.014357,69718.0,69693.0,0.014362]
[1770478466831,0.014357,69718.0,69679.0,0.014365]
[1770478466832,0.58333333,69722.0,69679.0,0.014365]
[1770478467029,0.014357,69721.0,69697.0,0.014361]
[1770478467231,0.014357,69721.0,69666.0,0.10859287]
[1770478467232,0.01436,69704.0,69662.0,0.10859287]
[1770478467432,0.01436,69706.0,69679.0,0.014365]
[1770478467826,0.01436,69706.0,69682.0,0.014364]
[1770478468026,0.014358,69712.0,69688.0,0.014363]
[1770478468226,0.014358,69716.0,69691.0,0.014362]
[1770478468429,0.59769033,69718.0,69695.0,0.014362]
[1770478468627,0.59769033,69718.0,69672.0,0.071834]
[1770478468836,0.59769033,69718.0,69692.0,0.014362]
[1770478469031,0.58333333,69718.0,69669.0,0.071837]
[1770478469226,0.014357,69717.0,69675.0,0.014366]
[1770478469536,0.014356,69721.0,69697.0,0.014361]
[1770478469726,0.014359,69711.0,69666.0,0.014368]
[1770478469921,0.58333333,69716.0,69666.0,0.014368]
[1770478469922,0.014359,69708.0,69666.0,0.014368]
[1770478470122,0.014359,69710.0,69666.0,0.014368]
[1770478470328,0.014359,69707.0,69683.0,0.014364]
[1770478470528,0.01436,69703.0,69666.0,0.014368]
[1770478470727,0.01436,69703.0,69678.0,0.014365]
[1770478470926,0.014361,69698.0,69674.0,0.014366]
[1770478471334,0.014361,69698.0,69655.0,0.071852]
[1770478471631,0.58333333,69703.0,69649.0,0.014371]
[1770478471935,0.014366,69676.0,69640.0,0.0002]
[1770478472145,0.01437,69658.0,69640.0,0.0002]
[1770478472333,0.014369,69662.0,69642.0,0.014373]
[1770478472530,0.014369,69662.0,69626.0,0.0001366]
[1770478472531,0.58333333,69672.0,69628.0,0.07188]
[1770478472730,0.014366,69673.0,69633.0,0.071875]
[1770478472926,0.014366,69674.0,69652.0,0.014371]
[1770478473234,0.014367,69669.0,69628.0,0.014376]
[1770478473534,0.014367,69669.0,69649.0,0.014371]
[1770478473732,0.58333333,69683.0,69626.0,0.0001366]
[1770478473733,0.014367,69670.0,69626.0,0.0001366]
[1770478473940,0.014368,69667.0,69644.0,0.014372]
[1770478474237,0.58333333,69671.0,69626.0,0.0001366]
[1770478474424,0.014368,69664.0,69641.0,0.014373]
[1770478474633,0.014369,69661.0,69640.0,0.014373]
[1770478474828,0.58333333,69668.0,69636.0,0.014374]
[1770478475235,0.014366,69674.0,69636.0,0.014374]
[1770478475532,0.014368,69666.0,69644.0,0.014372]
[1770478475924,0.014368,69666.0,69630.0,0.014375]
[1770478476125,0.014368,69666.0,69632.0,0.014375]
[1770478476328,0.014368,69667.0,69632.0,0.014375]
[1770478476635,0.014367,69671.0,69626.0,0.0001366]
[1770478476832,0.58333333,69696.0,69660.0,0.014369]
[1770478477134,0.014365,69680.0,69644.0,0.014372]
[1770478477337,0.014364,69683.0,69662.0,0.014368]
[1770478477532,0.59769633,69687.0,69653.0,0.01437]
[1770478477729,0.58333333,69683.0,69653.0,0.01437]
[1770478477930,0.58333333,69683.0,69631.0,0.10859287]
[1770478477931,0.014367,69671.0,69631.0,0.10859287]
[1770478478126,0.014366,69674.0,69653.0,0.01437]
[1770478478329,0.014366,69674.0,69633.0,0.014374]
[1770478478330,0.58333333,69683.0,69629.0,0.10859287]
[1770478478541,0.014361,69697.0,69626.0,0.0001366]
[1770478478542,0.58333333,69671.0,69642.0,0.014373]
[1770478478732,0.58333333,69671.0,69626.0,0.0001366]
[1770478478931,0.014368,69664.0,69644.0,0.014372]
[1770478479127,0.014368,69664.0,69646.0,0.014372]
[1770478479432,0.58333333,69659.0,69626.0,0.0001366]
[1770478479647,0.58333333,69659.0,69635.0,0.014374]
[1770478479648,0.01437,69654.0,69635.0,0.014374]
[1770478479835,0.014371,69652.0,69631.0,0.014375]
[1770478480037,0.014371,69652.0,69634.0,0.014374]
[1770478480942,0.014367,69671.0,69616.0,0.014378]
[1770478480943,0.014374,69637.0,69616.0,0.014378]
[1770478481129,0.58333333,69636.0,69609.0,0.0002]
[1770478481328,0.58333333,69636.0,69585.0,0.014384]
[1770478481329,0.014376,69627.0,69604.0,0.014381]
[1770478481638,0.014376,69627.0,69585.0,0.014584]
[1770478481639,0.014377,69622.0,69603.0,0.00019919]
[1770478481833,0.014378,69615.0,69585.0,0.0002]
[1770478482036,0.014375,69631.0,69587.0,0.014384]
[1770478482037,0.014379,69610.0,69587.0,0.014384]
[1770478482236,0.01438,69608.0,69583.0,0.014385]
[1770478482439,0.01438,69608.0,69577.0,0.0002]
[1770478482440,0.00011305,69609.0,69593.0,0.014383]
[1770478482644,0.00011305,69609.0,69577.0,0.0002]
[1770478482843,0.01448143,69608.0,69580.0,0.014385]
[1770478483141,0.01448143,69608.0,69577.0,0.0002]
[1770478483142,0.014382,69599.0,69577.0,0.0002]
[1770478483442,0.58333333,69607.0,69582.0,0.014385]
[1770478483742,0.58333333,69628.0,69588.0,0.014384]
[1770478484242,0.014379,69610.0,69583.0,0.014385]
[1770478484440,0.014379,69614.0,69586.0,0.014384]
[1770478486439,0.59771333,69608.0,69582.0,0.014385]
[1770478486850,0.014381,69605.0,69582.0,0.014385]
[1770478487152,0.014381,69605.0,69578.0,0.014386]
[1770478487946,0.014381,69602.0,69578.0,0.014386]
[1770478488342,0.014382,69599.0,69575.0,0.0002]
[1770478488541,0.014382,69599.0,69576.0,0.014386]
[1770478488933,0.58333333,69621.0,69573.0,0.0002]
[1770478489136,0.01438,69608.0,69573.0,0.0002]
[1770478489337,0.01438,69605.0,69582.0,0.014385]
[1770478489736,0.01438,69605.0,69585.0,0.014384]
[1770478490351,0.01438,69609.0,69585.0,0.014384]
[1770478490646,0.58333333,69606.0,69584.0,0.014385]
[1770478490843,0.01438,69605.0,69584.0,0.014385]
[1770478491344,0.58333333,69606.0,69578.0,0.014386]
[1770478491345,0.014382,69600.0,69578.0,0.014386]
[1770478492341,0.014382,69597.0,69574.0,0.014387]
[1770478492549,0.58333333,69606.0,69571.0,0.0002]
[1770478492737,0.014381,69602.0,69577.0,0.014386]
[1770478492944,0.014382,69599.0,69577.0,0.014386]
[1770478493644,0.58333333,69620.0,69570.0,0.014588]
[1770478493943,0.014381,69604.0,69581.0,0.014385]
[1770478494144,0.01438,69605.0,69585.0,0.014384]
[1770478494343,0.58333333,69606.0,69587.0,0.014384]
[1770478494549,0.01438,69609.0,69587.0,0.014384]
[1770478495048,0.58333333,69614.0,69583.0,0.014385]
[1770478495348,0.014378,69615.0,69593.0,0.014383]
[1770478495653,0.014373,69643.0,69577.0,0.0002]
[1770478495654,0.014381,69605.0,69585.0,0.014384]
[1770478495845,0.014381,69605.0,69586.0,0.0002]
[1770478496242,0.014381,69600.0,69586.0,0.0002]
[1770478496443,0.01438,69605.0,69586.0,0.0002]
[1770478496751,0.01438,69606.0,69586.0,0.014584]
[1770478496951,0.58333333,69610.0,69583.0,0.014385]
[1770478496952,0.014381,69604.0,69583.0,0.014385]
[1770478497451,0.014381,69604.0,69587.0,0.00019919]
[1770478497651,0.58333333,69604.0,69577.0,0.014386]
[1770478497852,0.014381,69603.0,69576.0,0.0002]
[1770478498053,0.014381,69603.0,69553.0,0.29877022]
[1770478498054,0.014381,69601.0,69580.0,0.014385]
[1770478498251,0.014381,69600.0,69579.0,0.014386]
[1770478498759,0.014379,69612.0,69564.0,0.014389]
[1770478498760,0.014385,69585.0,69564.0,0.014389]
[1770478499440,0.014385,69585.0,69561.0,0.0002]
[1770478499441,0.014384,69587.0,69561.0,0.0002]
[1770478499644,0.58333333,69582.0,69553.0,0.00010944]
[1770478499948,0.014389,69561.0,69557.0,0.0002]
[1770478500167,0.014389,69561.0,69521.0,0.10859287]
[1770478500168,0.58333333,69561.0,69521.0,0.28817211]
[1770478500453,0.58333333,69555.0,69510.0,0.0144]
[1770478500749,0.014384,69587.0,69545.0,0.014393]
[1770478500750,0.58333333,69567.0,69545.0,0.014393]
[1770478501005,0.014383,69593.0,69548.0,0.014392]
[1770478501006,0.014387,69575.0,69548.0,0.014392]
[1770478501163,0.58333333,69581.0,69536.0,0.014395]
[1770478501455,0.58333333,69581.0,69558.0,0.01439]
[1770478501641,0.014385,69583.0,69559.0,0.01439]
[1770478501843,0.14450798,69620.0,69532.0,0.10859287]
[1770478501844,0.65525333,69590.0,69532.0,0.10859287]
[1770478502157,0.65525333,69590.0,69531.0,0.014396]
[1770478502158,0.59771933,69579.0,69531.0,0.014396]
[1770478502457,0.59771933,69579.0,69540.0,0.014394]
[1770478502458,0.014389,69562.0,69540.0,0.014394]
[1770478502650,0.014388,69568.0,69546.0,0.014392]
[1770478502849,0.014389,69565.0,69542.0,0.014393]
[1770478503046,0.014389,69562.0,69542.0,0.014393]
[1770478503448,0.014389,69562.0,69550.0,0.0002]
[1770478503646,0.014389,69562.0,69549.0,0.0002]
[1770478504154,0.58333333,69592.0,69549.0,0.0002]
[1770478504551,0.014386,69580.0,69549.0,0.0002]
[1770478504851,0.014384,69589.0,69548.0,0.0002]
[1770478505056,0.014385,69584.0,69565.0,0.014389]
[1770478505356,0.014384,69588.0,69568.0,0.014388]
[1770478505957,0.59771633,69592.0,69575.0,0.0002]
[1770478506663,0.014384,69589.0,69575.0,0.0002]
[1770478506861,0.014383,69593.0,69575.0,0.0002]
[1770478507159,0.014382,69598.0,69578.0,0.014386]
[1770478507345,0.014381,69603.0,69580.0,0.014385]
[1770478507955,0.014381,69601.0,69580.0,0.014385]
[1770478508155,0.014381,69601.0,69585.0,0.0002]
[1770478509356,0.014381,69601.0,69583.0,0.014385]
[1770478510253,0.59771433,69604.0,69583.0,0.014385]
[1770478511057,0.58333333,69627.0,69578.0,0.29356108]
[1770478511257,0.014377,69622.0,69602.0,0.014381]
[1770478511457,0.59770933,69627.0,69606.0,0.01438]
[1770478511660,0.59770933,69627.0,69609.0,0.014379]
[1770478511661,0.58333333,69627.0,69609.0,0.014379]
[1770478511861,0.58333333,69639.0,69598.0,0.10859287]
[1770478512161,0.58333333,69639.0,69612.0,0.014379]
[1770478512359,0.59770633,69639.0,69612.0,0.014379]
[1770478512958,0.014363,69690.0,69605.0,0.10859287]
[1770478512959,0.58333333,69637.0,69605.0,0.10859287]
[1770478513160,0.58333333,69659.0,69606.0,0.32439117]
[1770478513463,0.014372,69648.0,69626.0,0.014376]
[1770478513860,0.014372,69648.0,69610.0,0.10859287]
[1770478513861,0.58333333,69659.0,69630.0,0.014375]
[1770478514054,0.58333333,69649.0,69609.0,0.16526953]
[1770478514255,0.071811,69696.0,69607.0,0.0002]
[1770478514256,0.54804169,69628.0,69607.0,0.0002]
[1770478514560,0.014378,69616.0,69594.0,0.014382]
[1770478514862,0.54804169,69628.0,69605.0,0.01438]
[1770478515162,0.54804169,69628.0,69580.0,0.14470798]
[1770478515163,0.014376,69627.0,69601.0,0.014381]
[1770478515351,0.54804169,69628.0,69589.0,0.09947333]
[1770478515548,0.55017555,69645.0,69614.0,0.014378]
[1770478515747,0.55017555,69645.0,69602.0,0.09947333]
[1770478515748,0.014373,69639.0,69617.0,0.014378]
[1770478516165,0.014371,69653.0,69603.0,0.0002]
[1770478516166,0.55017555,69634.0,69603.0,0.0002]
[1770478516562,0.014376,69628.0,69606.0,0.01438]
[1770478516756,0.014376,69625.0,69603.0,0.0002]
[1770478516955,0.014376,69625.0,69605.0,0.01438]
[1770478517156,0.014376,69629.0,69611.0,0.014379]
[1770478517364,0.014376,69629.0,69607.0,0.01438]
[1770478518156,0.014376,69629.0,69610.0,0.014379]
[1770478518758,0.014376,69629.0,69606.0,0.01438]
[1770478519064,0.014376,69626.0,69606.0,0.01438]
[1770478519450,0.014375,69630.0,69608.0,0.01438]
[1770478519651,0.014376,69628.0,69608.0,0.01438]
[1770478522168,0.014376,69626.0,69604.0,0.01438]
[1770478522868,0.014377,69623.0,69604.0,0.01438]
[1770478523959,0.014373,69640.0,69607.0,0.01438]
[1770478523960,0.014376,69626.0,69607.0,0.01438]
[1770478524163,0.014375,69632.0,69613.0,0.014379]
[1770478524455,0.014376,69628.0,69610.0,0.014379]
[1770478524863,0.014375,69631.0,69612.0,0.014379]
[1770478525064,0.014376,69629.0,69609.0,0.014379]
[1770478525462,0.014375,69633.0,69600.0,0.10482715]
[1770478525661,0.54839094,69639.0,69611.0,0.014379]
[1770478526068,0.54934732,69651.0,69615.0,0.10195801]
[1770478526367,0.014372,69648.0,69629.0,0.014375]
[1770478526970,0.014372,69646.0,69629.0,0.014375]
[1770478527165,0.014373,69642.0,69623.0,0.014376]
[1770478527465,0.014373,69642.0,69615.0,0.001]
[1770478527466,0.56442616,69654.0,69634.0,0.014374]
[1770478527768,0.014369,69658.0,69622.0,0.11420849]
[1770478527961,0.014369,69658.0,69640.0,0.014373]
[1770478528360,0.55005616,69667.0,69632.0,0.09983149]
[1770478528361,0.014368,69664.0,69632.0,0.09983149]
[1770478528569,0.014369,69661.0,69643.0,0.014372]
[1770478528769,0.014368,69664.0,69645.0,0.014372]
[1770478528961,0.014366,69673.0,69660.0,0.2892062]
[1770478529863,0.014368,69663.0,69653.0,0.2857294]
[1770478530063,0.014368,69667.0,69653.0,0.2857294]
[1770478530263,0.014368,69667.0,69635.0,0.0002]
[1770478530464,0.014368,69664.0,69645.0,0.014372]
[1770478530862,0.014369,69660.0,69639.0,0.014373]
[1770478531068,0.01437,69657.0,69638.0,0.014374]
[1770478531466,0.53780476,69658.0,69636.0,0.28979391]
[1770478531672,0.014371,69649.0,69629.0,0.014375]
[1770478532164,0.014371,69649.0,69615.0,0.0002]
[1770478532165,0.53780476,69641.0,69615.0,0.0002]
[1770478532467,0.53780476,69639.0,69617.0,0.014378]
[1770478532663,0.53780476,69639.0,69614.0,0.014378]
[1770478532864,0.014374,69638.0,69609.0,0.29387448]
[1770478533064,0.53780476,69639.0,69609.0,0.29387448]
[1770478533364,0.014374,69636.0,69609.0,0.29387448]
[1770478533570,0.014374,69636.0,69614.0,0.014378]
[1770478534174,0.014374,69637.0,69609.0,0.001]
[1770478534371,0.014374,69635.0,69609.0,0.001]
[1770478534570,0.014376,69629.0,69598.0,0.1511677]
[1770478534770,0.014375,69629.0,69610.0,0.014379]
[1770478534974,0.014375,69632.0,69614.0,0.014378]
[1770478535172,0.014375,69632.0,69598.0,0.1367857]
[1770478535173,0.53752375,69665.0,69622.0,0.13742873]
[1770478535367,0.53752375,69678.0,69638.0,0.13742873]
[1770478535674,0.53752375,69673.0,69644.0,0.014372]
[1770478535973,0.014369,69661.0,69644.0,0.014372]
[1770478537071,0.53752375,69673.0,69638.0,0.13742873]
[1770478537277,0.53752375,69673.0,69653.0,0.01437]
[1770478538476,0.014367,69672.0,69655.0,0.01437]
[1770478539177,0.014367,69672.0,69652.0,0.014371]
[1770478539683,0.014367,69672.0,69654.0,0.01437]
[1770478539869,0.58772241,69672.0,69654.0,0.01437]
[1770478540069,0.014368,69666.0,69648.0,0.014371]
[1770478540368,0.014368,69663.0,69633.0,0.014375]
[1770478540576,0.014368,69663.0,69645.0,0.014372]
[1770478540975,0.014367,69669.0,69652.0,0.014371]
[1770478541180,0.58872241,69672.0,69654.0,0.01437]
[1770478541483,0.014368,69667.0,69648.0,0.014371]
[1770478541776,0.014367,69668.0,69650.0,0.014371]
[1770478542170,0.57435541,69672.0,69639.0,0.14381918]
[1770478542372,0.57335541,69672.0,69644.0,0.014372]
[1770478542766,0.014369,69663.0,69644.0,0.014372]
[1770478542969,0.58772541,69657.0,69627.0,0.14340142]
[1770478543268,0.57335541,69657.0,69640.0,0.014373]
[1770478543473,0.57335541,69657.0,69627.0,0.14340142]
[1770478543669,0.014368,69663.0,69642.0,0.014373]
[1770478543982,0.014368,69664.0,69642.0,0.014373]
[1770478544277,0.014369,69662.0,69642.0,0.014373]
[1770478544472,0.014367,69671.0,69635.0,0.014374]
[1770478544680,0.014367,69671.0,69637.0,0.014374]
[1770478544681,0.57335541,69661.0,69637.0,0.014374]
[1770478544978,0.01437,69656.0,69637.0,0.014374]
[1770478545473,0.57335541,69661.0,69642.0,0.014373]
[1770478545671,0.58772241,69672.0,69652.0,0.014371]
[1770478545867,0.014368,69668.0,69649.0,0.014371]
[1770478546475,0.014368,69668.0,69646.0,0.014372]
[1770478547278,0.57335541,69657.0,69638.0,0.014373]
[1770478547682,0.58772541,69657.0,69638.0,0.014373]
[1770478548069,0.58772541,69657.0,69635.0,0.019374]
[1770478548376,0.014371,69653.0,69634.0,0.014374]
[1770478548679,0.014371,69653.0,69623.0,0.14336538]
[1770478548877,0.01437,69656.0,69636.0,0.014374]
[1770478549078,0.014371,69652.0,69633.0,0.014375]
[1770478549280,0.014371,69649.0,69630.0,0.014375]
[1770478549574,0.014372,69647.0,69630.0,0.014375]
[1770478549782,0.014369,69661.0,69613.0,0.005]
[1770478549783,0.014373,69640.0,69620.0,0.014377]
[1770478549980,0.014373,69643.0,69624.0,0.014376]
[1770478550181,0.57335541,69645.0,69626.0,0.014376]
[1770478550480,0.57335541,69645.0,69622.0,0.014377]
[1770478550680,0.014373,69643.0,69624.0,0.014376]
[1770478550880,0.014374,69638.0,69621.0,0.014377]
[1770478551373,0.57335541,69645.0,69617.0,0.014378]
[1770478551374,0.014374,69635.0,69617.0,0.014378]
[1770478551572,0.57335541,69635.0,69609.0,0.28025789]
[1770478551772,0.014375,69629.0,69610.0,0.014379]
[1770478551973,0.014376,69626.0,69609.0,0.28025789]
[1770478552173,0.014377,69623.0,69609.0,0.28025789]
[1770478552376,0.57335541,69629.0,69609.0,0.28025789]
[1770478552574,0.014376,69628.0,69609.0,0.28025789]
[1770478553283,0.57335541,69629.0,69610.0,0.014379]
[1770478554380,0.57335541,69629.0,69609.0,0.28025789]
[1770478554775,0.57335541,69629.0,69609.0,0.29463789]
[1770478554977,0.57335541,69629.0,69612.0,0.014379]
[1770478555174,0.014374,69635.0,69612.0,0.014379]
[1770478555376,0.014373,69639.0,69615.0,0.014378]
[1770478555577,0.014374,69637.0,69615.0,0.014378]
[1770478556786,0.57335541,69640.0,69610.0,0.14062409]
[1770478557389,0.57335541,69650.0,69628.0,0.014375]
[1770478557584,0.57335541,69650.0,69625.0,0.014376]
[1770478558090,0.014372,69645.0,69627.0,0.014376]
[1770478558683,0.014372,69648.0,69627.0,0.014376]
[1770478558896,0.57335541,69650.0,69633.0,0.014374]
[1770478559184,0.014369,69659.0,69639.0,0.014373]
[1770478560292,0.01437,69654.0,69632.0,0.014375]
[1770478560479,0.58772541,69654.0,69634.0,0.014374]
[1770478560685,0.57335541,69646.0,69623.0,0.014376]
[1770478560886,0.57335541,69644.0,69625.0,0.014376]
[1770478561390,0.014373,69643.0,69625.0,0.014376]
[1770478561592,0.01437,69657.0,69618.0,0.014378]
[1770478561593,0.014374,69638.0,69618.0,0.014378]
[1770478561790,0.014374,69636.0,69618.0,0.014378]
[1770478561990,0.014376,69624.0,69609.0,0.28025789]
[1770478562193,0.57335541,69627.0,69609.0,0.28025789]
[1770478562389,0.57335541,69622.0,69609.0,0.28025789]
[1770478562694,0.57335541,69631.0,69599.0,0.29104141]
[1770478562989,0.014377,69622.0,69595.0,0.014382]
[1770478563188,0.014372,69647.0,69585.0,0.014384]
[1770478563189,0.57335541,69625.0,69585.0,0.014384]
[1770478563492,0.014374,69635.0,69585.0,0.014384]
[1770478563493,0.57335541,69614.0,69595.0,0.014382]